bitfinex/quotes_BTCUSD_20241102
["timestamp","ask_amount","ask_price","bid_price","bid_amount"]
[1730543575149,0.100773,69463.0,69462.0,0.0902]
[1730543575377,0.21027858,69463.0,69462.0,0.0902]
[1730543575808,0.21750458,69463.0,69462.0,0.0902]
[1730543576242,0.26427512,69463.0,69462.0,0.0902]
[1730543577560,0.27027512,69463.0,69462.0,0.0902]
[1730543577778,0.27527512,69463.0,69462.0,0.0902]
[1730543581652,0.22850458,69463.0,69462.0,0.095024]
[1730543581869,0.118999,69463.0,69462.0,0.095024]
[1730543582093,0.118999,69463.0,69462.0,0.0902]
[1730543582388,0.118999,69463.0,69462.0,0.095024]
[1730543583254,0.22850458,69463.0,69462.0,0.095024]
[1730543583471,0.22850458,69463.0,69462.0,0.095845]
[1730543588165,0.22850458,69463.0,69462.0,0.091021]
[1730543588623,0.22850458,69463.0,69462.0,0.095845]
[1730543589745,0.22850458,69463.0,69462.0,0.091021]
[1730543590194,0.22850458,69463.0,69462.0,0.095845]
[1730543591049,0.22850458,69463.0,69462.0,0.091021]
[1730543591262,0.22850458,69463.0,69462.0,0.095845]
[1730543593252,0.018226,69463.0,69462.0,0.41567425]
[1730543593472,0.018226,69463.0,69462.0,0.42567425]
[1730543593688,0.011,69463.0,69462.0,0.42567425]
[1730543594413,0.006,69463.0,69462.0,0.42567425]
[1730543594852,0.24437627,69482.0,69479.0,0.004824]
[1730543595083,0.100748,69480.0,69479.0,0.004824]
[1730543595532,0.10788942,69480.0,69479.0,0.004824]
[1730543597540,0.10788942,69480.0,69479.0,0.14827925]
[1730543597833,0.10788942,69480.0,69479.0,0.22957925]
[1730543598062,0.00714142,69480.0,69479.0,0.22957925]
[1730543598280,0.11588942,69480.0,69479.0,0.22957925]
[1730543598494,0.12388942,69480.0,69479.0,0.22957925]
[1730543598927,0.11588942,69480.0,69479.0,0.22957925]
[1730543599357,0.12388942,69480.0,69479.0,0.22957925]
[1730543600011,0.02314142,69480.0,69479.0,0.22957925]
[1730543600442,0.02314142,69480.0,69479.0,0.32727925]
[1730543601094,0.02314142,69480.0,69479.0,0.42802825]
[1730543601309,0.016,69480.0,69479.0,0.32727925]
[1730543601760,0.016,69480.0,69479.0,0.42802825]
[1730543602007,0.02329963,69480.0,69479.0,0.42802825]
[1730543603084,0.02329963,69480.0,69479.0,0.32727925]
[1730543603304,0.02329963,69480.0,69479.0,0.42802825]
[1730543603511,0.016,69480.0,69479.0,0.42802825]
[1730543607671,0.017642,69480.0,69479.0,0.42802825]
[1730543609356,0.017642,69480.0,69479.0,0.43253049]
[1730543609816,0.017642,69480.0,69479.0,0.54203607]
[1730543610024,0.017642,69480.0,69479.0,0.54703607]
[1730543610252,0.017642,69480.0,69479.0,0.55423978]
[1730543610475,0.017642,69480.0,69479.0,0.55923978]
[1730543610694,0.009642,69480.0,69479.0,0.55923978]
[1730543611136,0.010642,69480.0,69479.0,0.56123978]
[1730543611344,0.002642,69480.0,69479.0,0.56123978]
[1730543611769,0.004642,69480.0,69479.0,0.56223978]
[1730543612198,0.003642,69480.0,69479.0,0.56223978]
[1730543612638,0.004642,69480.0,69479.0,0.56423978]
[1730543613257,0.004642,69480.0,69479.0,0.56223978]
[1730543613500,0.004642,69480.0,69479.0,0.59104978]
[1730543613736,0.004642,69480.0,69479.0,0.56223978]
[1730543615709,0.004642,69480.0,69479.0,0.68027404]
[1730543616357,0.004642,69480.0,69479.0,0.66856809]
[1730543616570,0.004642,69480.0,69479.0,0.68027236]
[1730543617521,0.004642,69480.0,69479.0,0.69302427]
[1730543618004,0.004642,69480.0,69479.0,0.70749559]
[1730543618256,0.004642,69480.0,69479.0,0.81406038]
[1730543618484,0.001642,69488.0,69487.0,0.40446758]
[1730543618709,0.001642,69488.0,69487.0,0.5546271]
[1730543619146,0.001642,69488.0,69487.0,0.68321741]
[1730543619384,0.001642,69488.0,69487.0,0.67151314]
[1730543619654,0.001642,69488.0,69487.0,0.69396729]
[1730543619869,0.001642,69488.0,69487.0,0.79396729]
[1730543620957,0.002642,69488.0,69487.0,0.80696729]
[1730543621185,0.003642,69488.0,69487.0,0.82096729]
[1730543621882,0.003642,69488.0,69487.0,0.96004077]
[1730543622101,0.003642,69488.0,69487.0,0.95347276]
[1730543622802,0.003642,69488.0,69487.0,0.94177063]
[1730543623035,0.003642,69488.0,69487.0,0.95347167]
[1730543623718,0.003642,69488.0,69487.0,0.98228167]
[1730543625301,0.003642,69488.0,69487.0,1.06871167]
[1730543625972,0.003642,69488.0,69487.0,1.07312357]
[1730543628308,0.001644,69497.0,69496.0,0.222549]
[1730543628534,0.001644,69497.0,69496.0,0.87770845]
[1730543628745,0.00931804,69497.0,69496.0,0.88846036]
[1730543628981,0.001644,69497.0,69496.0,0.96413845]
[1730543629196,0.21508923,69511.0,69499.0,0.331974]
[1730543629386,0.21508923,69511.0,69499.0,1.01991875]
[1730543629629,3.80639413,69500.0,69499.0,1.03065778]
[1730543629979,3.80639413,69500.0,69499.0,1.03065535]
[1730543631093,3.80739413,69500.0,69499.0,1.04265535]
[1730543631282,3.72206313,69500.0,69499.0,1.08446535]
[1730543631542,3.69328613,69500.0,69499.0,1.08446535]
[1730543631721,3.69228613,69500.0,69499.0,1.07246535]
[1730543632669,3.69128613,69500.0,69499.0,1.05946535]
[1730543633105,3.69128613,69500.0,69499.0,1.07346535]
[1730543633355,2.90683226,69500.0,69499.0,1.07346535]
[1730543633573,2.90683226,69500.0,69499.0,1.07345099]
[1730543633768,2.30163652,69500.0,69499.0,1.07345099]
[1730543633992,2.25491678,69500.0,69499.0,1.07345099]
[1730543634464,2.25491678,69500.0,69499.0,1.08745099]
[1730543635789,2.25491678,69500.0,69499.0,0.97794541]
[1730543636275,2.25491678,69500.0,69499.0,1.08745099]
[1730543636503,2.25491678,69500.0,69499.0,0.97794541]
[1730543637434,2.25491678,69500.0,69499.0,0.95294541]
[1730543637647,2.25491678,69500.0,69499.0,0.86651541]
[1730543637863,2.25491678,69500.0,69499.0,0.74050541]
[1730543639206,2.25491678,69500.0,69499.0,0.74950541]
[1730543639687,2.25491678,69500.0,69499.0,0.76350541]
[1730543639919,2.25491678,69500.0,69499.0,0.49092811]
[1730543640364,2.25491678,69500.0,69499.0,0.51892811]
[1730543640613,2.25491678,69500.0,69499.0,0.40942253]
[1730543640849,2.25491678,69500.0,69499.0,0.39542253]
[1730543641068,2.25491678,69500.0,69499.0,0.49092811]
[1730543641321,2.25491678,69500.0,69499.0,0.26787386]
[1730543641557,2.25491678,69500.0,69499.0,0.27769786]
[1730543642707,2.25491678,69500.0,69499.0,0.28349871]
[1730543643380,2.25491678,69500.0,69499.0,0.29069786]
[1730543643804,2.25655878,69500.0,69499.0,0.29069786]
[1730543645431,2.25655878,69500.0,69499.0,0.30144549]
[1730543646540,2.25655878,69500.0,69499.0,0.27899925]
[1730543646765,2.25655878,69500.0,69499.0,0.30145138]
[1730543646987,2.25655878,69500.0,69499.0,0.29069962]
[1730543647216,2.25655878,69500.0,69499.0,0.30145138]
[1730543647439,2.25655878,69500.0,69499.0,0.29645138]
[1730543647677,2.25655878,69500.0,69499.0,0.30145138]
[1730543653301,2.35355878,69500.0,69499.0,0.30145138]
[1730543653512,2.25655878,69500.0,69499.0,0.30145138]
[1730543653725,2.25655878,69500.0,69499.0,0.27899925]
[1730543653946,2.25655878,69500.0,69499.0,0.29070091]
[1730543654196,2.25655878,69500.0,69499.0,0.30147078]
[1730543654672,2.25655878,69500.0,69499.0,0.29426976]
[1730543655596,2.25655878,69500.0,69499.0,0.28349956]
[1730543656024,2.25655878,69500.0,69499.0,0.28432056]
[1730543656683,2.25655878,69500.0,69499.0,0.29508964]
[1730543656894,2.25655878,69500.0,69499.0,0.28432056]
[1730543657538,2.25655878,69500.0,69499.0,0.57415297]
[1730543657772,2.25655878,69500.0,69499.0,0.65125266]
[1730543658933,2.25655878,69500.0,69499.0,0.63925266]
[1730543659407,2.25655878,69500.0,69499.0,0.65325266]
[1730543659849,2.25655878,69500.0,69499.0,0.62825266]
[1730543660071,2.25655878,69500.0,69499.0,0.64225266]
[1730543660287,2.25655878,69500.0,69499.0,0.65625266]
[1730543660501,2.25655878,69500.0,69499.0,0.64225266]
[1730543660713,2.25655878,69500.0,69499.0,0.65752148]
[1730543660925,2.25655878,69500.0,69499.0,0.69452148]
[1730543661357,2.25655878,69500.0,69499.0,0.78095148]
[1730543662442,2.25655878,69500.0,69499.0,0.77645165]
[1730543662654,2.25655878,69500.0,69499.0,0.78095119]
[1730543662886,2.25655878,69500.0,69499.0,0.77645165]
[1730543663329,2.25655878,69500.0,69499.0,0.82392342]
[1730543663997,2.25655878,69500.0,69499.0,0.81942388]
[1730543664220,2.25655878,69500.0,69499.0,0.77645244]
[1730543664482,2.25655878,69500.0,69499.0,0.78095198]
[1730543665159,2.25655878,69500.0,69499.0,0.84555664]
[1730543665393,2.25655878,69500.0,69499.0,1.00283061]
[1730543665604,2.25655878,69500.0,69499.0,1.0531655]
[1730543665862,2.25655878,69500.0,69499.0,1.07653153]
[1730543666320,2.25655878,69500.0,69499.0,1.06253153]
[1730543666810,2.25655878,69500.0,69499.0,1.07653153]
[1730543667061,2.25655878,69500.0,69499.0,1.32420485]
[1730543667269,2.25655878,69500.0,69499.0,1.04853153]
[1730543667711,2.25655878,69500.0,69499.0,1.06253153]
[1730543667919,2.25655878,69500.0,69499.0,1.04853153]
[1730543668390,2.25655878,69500.0,69499.0,1.06253153]
[1730543668621,2.25655878,69500.0,69499.0,1.07653153]
[1730543671073,2.25655878,69500.0,69499.0,1.06126221]
[1730543671289,2.25655878,69500.0,69499.0,1.07653383]
[1730543672364,1.52564125,69500.0,69499.0,1.09336842]
[1730543672579,1.52564125,69500.0,69499.0,1.26686998]
[1730543672798,1.52564125,69500.0,69499.0,1.18073913]
[1730543672799,1.38175625,69500.0,69499.0,1.18073913]
[1730543673019,1.38175625,69500.0,69499.0,1.28841362]
[1730543673257,1.38175625,69500.0,69499.0,1.27441362]
[1730543673504,1.38175625,69500.0,69499.0,1.16673913]
[1730543673713,1.38175625,69500.0,69499.0,1.27441362]
[1730543673954,1.38175625,69500.0,69499.0,1.17859742]
[1730543674387,1.38175625,69500.0,69499.0,1.07095215]
[1730543674863,1.38175625,69500.0,69499.0,1.04295215]
[1730543675077,1.38175625,69500.0,69499.0,1.07095215]
[1730543675699,1.38175625,69500.0,69499.0,1.05695215]
[1730543675913,1.38175625,69500.0,69499.0,1.07095215]
[1730543676526,1.38175625,69500.0,69499.0,1.12845834]
[1730543678707,1.38175625,69500.0,69499.0,0.97226684]
[1730543679841,1.38175625,69500.0,69499.0,0.80525507]
[1730543682333,1.38175625,69500.0,69499.0,0.96243054]
[1730543685177,1.38175625,69500.0,69499.0,1.07007581]
[1730543685594,1.38175625,69500.0,69499.0,0.96243054]
[1730543686015,1.38175625,69500.0,69499.0,1.01999654]
[1730543686643,1.38175625,69500.0,69499.0,1.18700831]
[1730543688949,1.38175625,69500.0,69499.0,1.18701205]
[1730543690434,1.38175625,69500.0,69499.0,1.00911205]
[1730543692771,1.38175625,69500.0,69499.0,1.00911723]
[1730543693411,1.38175625,69500.0,69499.0,1.1167625]
[1730543694700,1.38175625,69500.0,69499.0,1.37843582]
[1730543695775,1.15813556,69500.0,69499.0,1.55353582]
[1730543695979,1.13329177,69500.0,69499.0,1.44589264]
[1730543696307,1.13329177,69500.0,69499.0,1.22870053]
[1730543696524,1.13329177,69500.0,69499.0,1.17127065]
[1730543696737,1.04696077,69500.0,69499.0,1.17033766]
[1730543696961,0.98940677,69500.0,69499.0,1.17033766]
[1730543697625,0.84552177,69500.0,69499.0,1.17033766]
[1730543697846,0.84552177,69500.0,69499.0,1.12585645]
[1730543698064,0.84552177,69500.0,69499.0,1.17033671]
[1730543699427,0.84552177,69500.0,69499.0,1.17033489]
[1730543700089,0.84552177,69500.0,69499.0,1.12585463]
[1730543700521,0.84552177,69500.0,69499.0,1.17033989]
[1730543700933,0.73041377,69500.0,69499.0,1.17033989]
[1730543701135,0.70163677,69500.0,69499.0,1.17033989]
[1730543701366,0.70163677,69500.0,69499.0,1.17033928]
[1730543701578,0.70163677,69500.0,69499.0,1.12585463]
[1730543702279,0.70163677,69500.0,69499.0,1.11507303]
[1730543702492,0.70163677,69500.0,69499.0,1.12585406]
[1730543704430,0.70163677,69500.0,69499.0,1.12808406]
[1730543705601,0.70163677,69500.0,69499.0,1.12808403]
[1730543705828,0.70163677,69500.0,69499.0,1.17257088]
[1730543706720,0.70163677,69500.0,69499.0,1.15857088]
[1730543706934,0.70163677,69500.0,69499.0,1.14457088]
[1730543707140,0.70163677,69500.0,69499.0,1.15857088]
[1730543707349,0.70163677,69500.0,69499.0,1.17257095]
[1730543709057,0.70163677,69500.0,69499.0,0.83899847]
[1730543709278,0.70163677,69500.0,69499.0,0.99751354]
[1730543712581,0.70163677,69500.0,69499.0,0.98673247]
[1730543712824,0.54599686,69500.0,69499.0,1.1726138]
[1730543713036,0.001644,69508.0,69504.0,0.535867]
[1730543713255,0.001644,69508.0,69504.0,1.06278215]
[1730543713718,1e-06,69505.0,69504.0,1.06270113]
[1730543714407,1e-06,69505.0,69504.0,1.06895825]
[1730543714830,1e-06,69505.0,69504.0,1.08295825]
[1730543715255,1e-06,69505.0,69504.0,1.06895825]
[1730543715742,1e-06,69505.0,69504.0,1.19831976]
[1730543716184,0.001644,69508.0,69507.0,0.337763]
[1730543716185,1e-06,69508.0,69507.0,0.337763]
[1730543716408,1e-06,69508.0,69507.0,0.83693335]
[1730543717051,1e-06,69508.0,69507.0,1.01075178]
[1730543717280,1e-06,69508.0,69507.0,1.02475178]
[1730543717733,1e-06,69508.0,69507.0,0.99997073]
[1730543717978,1e-06,69508.0,69507.0,1.01074141]
[1730543718163,1e-06,69508.0,69507.0,0.8953799]
[1730543718851,1e-06,69508.0,69507.0,0.9093799]
[1730543719077,1e-06,69508.0,69507.0,0.8953799]
[1730543719295,1e-06,69508.0,69507.0,0.85092298]
[1730543719523,1e-06,69508.0,69507.0,0.86492298]
[1730543719747,1e-06,69508.0,69507.0,0.86348949]
[1730543722867,0.21508923,69518.0,69517.0,0.021824]
[1730543723078,0.21508923,69518.0,69517.0,0.50997393]
[1730543723285,0.21673123,69525.0,69517.0,0.50997393]
[1730543723286,0.21673123,69525.0,69524.0,0.243508]
[1730543723492,0.21673123,69525.0,69524.0,0.54973449]
[1730543723712,0.001642,69525.0,69524.0,0.57853449]
[1730543724383,0.001642,69525.0,69524.0,0.64309802]
[1730543724821,0.001642,69525.0,69524.0,0.65709802]
[1730543725255,0.001642,69525.0,69524.0,0.65909802]
[1730543725957,0.001642,69525.0,69524.0,0.67309802]
[1730543726169,0.001642,69525.0,69524.0,0.67308819]
[1730543727039,0.001642,69525.0,69524.0,0.67308251]
[1730543728445,0.001642,69525.0,69524.0,0.67761841]
[1730543728653,0.001642,69525.0,69524.0,0.52061785]
[1730543730553,0.001642,69525.0,69524.0,0.52061688]
[1730543734051,0.001642,69525.0,69524.0,0.52061779]
[1730543734270,0.001642,69525.0,69524.0,0.67742706]
[1730543734494,0.001642,69525.0,69524.0,0.67742775]
[1730543735769,0.001642,69525.0,69524.0,0.76385775]
[1730543736416,0.001642,69525.0,69524.0,0.76390687]
[1730543737254,0.001642,69525.0,69524.0,0.69935228]
[1730543737482,0.096142,69525.0,69524.0,0.69281638]
[1730543737705,0.096142,69525.0,69524.0,0.68205075]
[1730543737911,0.001642,69525.0,69524.0,0.80237493]
[1730543738988,0.001642,69525.0,69524.0,0.91193049]
[1730543739209,0.001642,69525.0,69524.0,0.89044772]
[1730543739447,0.001642,69525.0,69524.0,0.91393049]
[1730543739656,0.001642,69525.0,69524.0,0.91196592]
[1730543740344,0.001642,69525.0,69524.0,0.91393049]
[1730543741023,0.001642,69525.0,69524.0,0.80437493]
[1730543741264,0.001642,69525.0,69524.0,0.90316187]
[1730543741467,0.001642,69525.0,69524.0,1.01333895]
[1730543742515,0.001642,69525.0,69524.0,0.96111362]
[1730543742924,0.001642,69525.0,69524.0,1.00555216]
[1730543743147,0.0945,69540.0,69539.0,0.014824]
[1730543743360,0.00163,69558.0,69545.0,0.115478]
[1730543743568,0.00163,69558.0,69545.0,0.26471033]
[1730543743741,0.174342,69547.0,69546.0,0.115476]
[1730543743943,0.174342,69547.0,69546.0,0.26470833]
[1730543744954,0.174342,69547.0,69546.0,0.26470639]
[1730543745358,0.174342,69547.0,69546.0,0.27693125]
[1730543745611,0.174342,69547.0,69546.0,0.28770263]
[1730543746156,0.174342,69547.0,69546.0,0.29770263]
[1730543746353,0.174342,69547.0,69546.0,0.30870263]
[1730543747783,0.001642,69547.0,69546.0,0.30870263]
[1730543747986,0.001642,69547.0,69546.0,0.31070263]
[1730543748182,0.001642,69547.0,69546.0,0.30870263]
[1730543748495,0.001642,69547.0,69546.0,0.29793125]
[1730543748702,0.001642,69547.0,69546.0,0.31369439]
[1730543749126,0.001642,69547.0,69546.0,0.52878362]
[1730543749331,0.001642,69547.0,69546.0,0.31569439]
[1730543749738,0.001642,69547.0,69546.0,0.31369439]
[1730543749945,0.001642,69547.0,69546.0,0.31569439]
[1730543751035,0.001642,69547.0,69546.0,0.50212439]
[1730543751260,0.001642,69547.0,69546.0,0.53092439]
[1730543752078,0.001642,69547.0,69546.0,0.67630497]
[1730543752280,0.001642,69547.0,69546.0,0.72975171]
[1730543752486,0.001642,69547.0,69546.0,0.75775171]
[1730543752686,0.001642,69547.0,69546.0,0.60241573]
[1730543752888,0.001642,69547.0,69546.0,0.58841573]
[1730543753100,0.001642,69547.0,69546.0,0.7437714]
[1730543753309,0.001642,69547.0,69546.0,0.60238609]
[1730543753772,0.001642,69547.0,69546.0,0.75764693]
[1730543754236,0.001642,69547.0,69546.0,0.60238609]
[1730543755006,0.001642,69547.0,69546.0,0.75750791]
[1730543755253,0.001642,69547.0,69546.0,0.60238609]
[1730543755383,0.001642,69547.0,69546.0,0.53792439]
[1730543755598,0.001642,69547.0,69546.0,0.53790517]
[1730543756429,0.001642,69547.0,69546.0,0.54228862]
[1730543756776,0.001642,69547.0,69546.0,0.7653258]
[1730543758490,0.001642,69547.0,69546.0,0.60675032]
[1730543759174,0.001642,69547.0,69546.0,0.54228862]
[1730543759563,0.001642,69547.0,69546.0,0.60675032]
[1730543759692,0.001642,69547.0,69546.0,0.54228862]
[1730543761592,0.001642,69547.0,69546.0,0.54804062]
[1730543762447,0.001642,69547.0,69546.0,0.53404062]
[1730543762647,0.001642,69547.0,69546.0,0.65751823]
[1730543762998,0.001642,69547.0,69546.0,0.64351823]
[1730543763160,0.001642,69547.0,69546.0,0.65751823]
[1730543768695,0.001642,69547.0,69546.0,0.53590517]
[1730543768899,0.001642,69547.0,69546.0,0.53790517]
[1730543769547,0.001642,69547.0,69546.0,0.42067517]
[1730543769751,0.083942,69547.0,69546.0,0.42067517]
[1730543769951,0.083942,69547.0,69546.0,0.44947517]
[1730543770380,0.001642,69547.0,69546.0,0.44947517]
[1730543770697,0.001642,69547.0,69546.0,0.53590517]
[1730543772577,0.001642,69547.0,69546.0,0.50710517]
[1730543772780,0.092042,69547.0,69546.0,0.52516125]
[1730543772980,0.092042,69547.0,69546.0,0.53593291]
[1730543773891,0.001642,69547.0,69546.0,0.53593291]
[1730543776433,0.001642,69547.0,69546.0,0.52516125]
[1730543776589,0.001642,69547.0,69546.0,0.53593911]
[1730543777834,0.001642,69547.0,69546.0,0.63613911]
[1730543778033,0.001642,69547.0,69546.0,0.63613946]
[1730543778868,0.001642,69547.0,69546.0,0.67911511]
[1730543780146,0.001642,69547.0,69546.0,0.63613946]
[1730543780385,0.001642,69547.0,69546.0,0.70060496]
[1730543780576,0.001642,69547.0,69546.0,0.83934967]
[1730543780788,0.001642,69547.0,69546.0,0.94678881]
[1730543781434,0.001642,69547.0,69546.0,0.83934967]
[1730543784485,0.001642,69547.0,69546.0,0.94882728]
[1730543784743,0.001642,69547.0,69546.0,1.02982728]
[1730543784954,0.001642,69547.0,69546.0,1.15875425]
[1730543785458,0.001642,69547.0,69546.0,0.92034967]
[1730543785682,0.001642,69547.0,69546.0,1.02982728]
[1730543787244,0.001642,69547.0,69546.0,1.22019602]
[1730543787454,0.001642,69547.0,69546.0,1.20941579]
[1730543787672,0.001642,69547.0,69546.0,1.22018729]
[1730543788093,0.001642,69547.0,69546.0,1.02981861]
[1730543788741,0.001642,69547.0,69546.0,1.01581861]
[1730543788948,0.001642,69547.0,69546.0,1.02981861]
[1730543789601,0.001642,69547.0,69546.0,1.01581861]
[1730543790230,0.001642,69547.0,69546.0,1.02985109]
[1730543790489,0.001642,69547.0,69546.0,1.01585109]
[1730543790719,0.001642,69547.0,69546.0,1.00185109]
[1730543790934,0.001642,69547.0,69546.0,1.02985109]
[1730543793365,1e-06,69550.0,69549.0,0.535502]
[1730543793574,1e-06,69550.0,69549.0,1.1069247]
[1730543794605,1e-06,69550.0,69549.0,1.1349247]
[1730543797639,1e-06,69550.0,69549.0,1.1209247]
[1730543797986,1e-06,69550.0,69549.0,1.1349247]
[1730543798407,1e-06,69550.0,69549.0,1.1209247]
[1730543798602,1e-06,69550.0,69549.0,1.13491368]
[1730543799031,1e-06,69550.0,69549.0,1.12091368]
[1730543799524,1e-06,69550.0,69549.0,1.13490416]
[1730543800424,0.21508923,69560.0,69549.0,1.13490416]
[1730543800425,0.21508923,69560.0,69557.0,0.56706761]
[1730543800637,0.21508923,69560.0,69557.0,0.87503469]
[1730543800855,0.09963,69567.0,69557.0,0.87503469]
[1730543801758,0.09963,69567.0,69557.0,0.88903469]
[1730543802454,0.09963,69567.0,69557.0,0.7442834]
[1730543802695,0.00163,69567.0,69557.0,0.8221834]
[1730543803354,0.00163,69567.0,69557.0,0.8081834]
[1730543803589,0.00163,69567.0,69557.0,0.98016495]
[1730543803840,0.00163,69567.0,69557.0,0.99655954]
[1730543804279,0.00163,69567.0,69557.0,1.0289614]
[1730543804766,0.00163,69567.0,69557.0,1.0149614]
[1730543804985,0.00163,69567.0,69557.0,1.0289614]
[1730543806118,0.00163,69567.0,69557.0,1.02895716]
[1730543807401,0.00163,69567.0,69566.0,0.57963222]
[1730543807632,0.00163,69567.0,69566.0,0.88485534]
[1730543808559,0.00163,69567.0,69566.0,0.88682532]
[1730543808774,0.00163,69567.0,69566.0,0.77734771]
[1730543809212,0.00163,69567.0,69566.0,0.79134771]
[1730543810131,0.00163,69567.0,69566.0,0.91158091]
[1730543810344,0.00163,69567.0,69566.0,1.03302773]
[1730543811650,0.00163,69567.0,69566.0,0.92355012]
[1730543812741,0.00163,69567.0,69566.0,0.92798129]
[1730543812939,0.00163,69567.0,69566.0,0.91398129]
[1730543813152,0.00163,69567.0,69566.0,0.91722535]
[1730543813367,0.00163,69567.0,69566.0,0.92608283]
[1730543813589,0.00163,69567.0,69566.0,0.89808283]
[1730543813800,0.00163,69567.0,69566.0,0.80466454]
[1730543814614,0.00163,69567.0,69566.0,0.81866454]
[1730543815461,0.00163,69567.0,69566.0,0.90458467]
[1730543816317,0.00163,69567.0,69566.0,0.81866454]
[1730543816524,0.00163,69567.0,69566.0,0.90458412]
[1730543816727,0.00163,69567.0,69566.0,0.90458454]
[1730543818681,0.00163,69567.0,69566.0,0.91033554]
[1730543818873,0.00163,69567.0,69566.0,0.89957959]
[1730543820355,0.00163,69567.0,69566.0,0.81366001]
[1730543821231,0.09973,69567.0,69566.0,0.29765722]
[1730543821425,0.18253,69567.0,69566.0,0.29765722]
[1730543821643,0.18253,69567.0,69566.0,0.29766185]
[1730543822275,0.18253,69567.0,69566.0,0.28366185]
[1730543822447,0.18253,69567.0,69566.0,0.39766185]
[1730543822657,0.18253,69567.0,69566.0,0.38366185]
[1730543822885,0.18253,69567.0,69566.0,0.3836631]
[1730543823436,0.18253,69567.0,69566.0,0.3976631]
[1730543824141,0.18253,69567.0,69566.0,0.3836631]
[1730543824701,0.18253,69567.0,69566.0,0.3966631]
[1730543826420,0.18253,69567.0,69566.0,0.39666254]
[1730543830529,0.18253,69567.0,69566.0,0.38683854]
[1730543830726,0.18253,69567.0,69566.0,0.39666254]
[1730543833531,0.18253,69567.0,69566.0,0.39666152]
[1730543833743,0.18253,69567.0,69566.0,0.38590225]
[1730543833955,0.18253,69567.0,69566.0,0.39166168]
[1730543834836,0.18253,69567.0,69566.0,0.38666168]
[1730543835060,0.18253,69567.0,69566.0,0.39166168]
[1730543836553,0.18253,69567.0,69566.0,0.38666168]
[1730543836761,0.18253,69567.0,69566.0,0.38183768]
[1730543837176,0.18253,69567.0,69566.0,0.38666168]
[1730543837377,0.18253,69567.0,69566.0,0.38183768]
[1730543837592,0.18253,69567.0,69566.0,0.39166168]
[1730543837796,0.18253,69567.0,69566.0,0.39666168]
[1730543838025,0.18253,69567.0,69566.0,0.39166168]
[1730543838239,0.18253,69567.0,69566.0,0.39666168]
[1730543839341,0.18253,69567.0,69566.0,0.38590225]
[1730543839547,0.18253,69567.0,69566.0,0.39665961]
[1730543839752,0.18253,69567.0,69566.0,0.38590225]
[1730543839972,0.18253,69567.0,69566.0,0.39665988]
[1730543840603,0.18253,69567.0,69566.0,0.39666026]
[1730543841006,0.18253,69567.0,69566.0,0.28666026]
[1730543841259,0.18253,69567.0,69566.0,0.27590225]
[1730543841465,0.39262961,69567.0,69566.0,0.17527925]
[1730543841669,0.18253,69567.0,69566.0,0.27590225]
[1730543843182,0.18253,69567.0,69566.0,0.28666364]
[1730543844945,0.18253,69567.0,69566.0,0.18604064]
[1730543845145,0.283152,69567.0,69566.0,0.18604064]
[1730543846976,0.18253,69567.0,69566.0,0.18604064]
[1730543847184,0.283152,69567.0,69566.0,0.18604064]
[1730543847768,0.283152,69567.0,69566.0,0.17527925]
[1730543848172,0.283152,69567.0,69566.0,0.16127925]
[1730543848370,0.283152,69567.0,69566.0,0.14327925]
[1730543848603,0.284152,69567.0,69566.0,0.14345525]
[1730543848935,0.286152,69567.0,69566.0,0.15904064]
[1730543849143,0.286152,69567.0,69566.0,0.14827925]
[1730543849382,0.286152,69567.0,69566.0,0.14345525]
[1730543849588,0.286152,69567.0,69566.0,0.1590497]
[1730543850496,0.286152,69567.0,69566.0,0.14827925]
[1730543856219,0.10273,69567.0,69566.0,0.24890225]
[1730543856436,0.00463,69567.0,69566.0,0.2596685]
[1730543856938,0.00463,69567.0,69566.0,0.25966478]
[1730543860506,0.00463,69567.0,69566.0,0.24890225]
[1730543861107,0.00463,69567.0,69566.0,0.25966747]
[1730543861321,0.00463,69567.0,69566.0,0.58923431]
[1730543861488,0.00463,69567.0,69566.0,0.26466747]
[1730543862138,0.00263,69567.0,69566.0,0.37414508]
[1730543862339,0.00163,69567.0,69566.0,0.37414508]
[1730543862555,0.00163,69567.0,69566.0,0.38114508]
[1730543862754,0.00163,69567.0,69566.0,0.38914508]
[1730543862984,0.00163,69567.0,69566.0,0.37414508]
[1730543863375,0.00163,69567.0,69566.0,0.28766747]
[1730543864185,0.00163,69567.0,69566.0,0.27690225]
[1730543864400,0.00163,69567.0,69566.0,0.28766566]
[1730543864617,0.00163,69567.0,69566.0,0.27566566]
[1730543864828,0.00163,69567.0,69566.0,0.28766566]
[1730543869757,0.00163,69567.0,69566.0,0.33070875]
[1730543870139,0.00163,69567.0,69566.0,0.63819875]
[1730543870348,0.00163,69567.0,69566.0,0.64019875]
[1730543870549,0.00163,69567.0,69566.0,0.86850315]
[1730543870766,0.00163,69567.0,69566.0,0.78241696]
[1730543871177,0.00163,69567.0,69566.0,0.77041696]
[1730543871392,0.00163,69567.0,69566.0,1.05940231]
[1730543871610,0.00163,69567.0,69566.0,0.87031696]
[1730543871841,0.00163,69567.0,69566.0,0.870308]
[1730543872278,0.00163,69567.0,69566.0,0.856308]
[1730543872715,0.00163,69567.0,69566.0,0.870308]
[1730543873175,0.00163,69567.0,69566.0,0.86902511]
[1730543873590,0.00163,69567.0,69566.0,0.97654445]
[1730543874775,0.00163,69567.0,69566.0,1.08602206]
[1730543874942,0.00163,69567.0,69566.0,0.97654445]
[1730543875561,0.00163,69567.0,69566.0,1.08602206]
[1730543875798,0.00163,69567.0,69566.0,0.86902511]
[1730543876657,0.00163,69567.0,69566.0,0.9764879]
[1730543877325,0.00163,69567.0,69566.0,1.08596551]
[1730543878715,0.00163,69567.0,69566.0,0.86902511]
[1730543879232,0.00163,69567.0,69566.0,0.86900996]
[1730543879567,0.00163,69567.0,69566.0,0.97848757]
[1730543880378,0.00163,69567.0,69566.0,0.86900996]
[1730543880790,0.00163,69567.0,69566.0,0.97848757]
[1730543880999,0.00163,69567.0,69566.0,0.97839452]
[1730543881585,0.00163,69567.0,69566.0,0.95485]
[1730543881786,0.00163,69567.0,69566.0,0.85817761]
[1730543882024,0.00163,69567.0,69566.0,0.86891744]
[1730543882426,0.00163,69567.0,69566.0,0.95484582]
[1730543883585,0.00163,69567.0,69566.0,1.06432343]
[1730543883721,0.00163,69567.0,69566.0,0.95484582]
[1730543885253,0.00163,69567.0,69566.0,0.95454185]
[1730543885778,0.00163,69567.0,69566.0,0.86864]
[1730543888673,0.00163,69567.0,69566.0,0.86864602]